bitfinex/quotes_SOLUSD_20250718
["timestamp","ask_amount","ask_price","bid_price","bid_amount"]
[1752809049025,0.71,180.6,180.59,3.76746764]
[1752809049225,6.51180356,180.62,180.59,3.76746764]
[1752809049632,0.71,180.61,180.59,3.76746764]
[1752809049825,0.71,180.61,180.58,5.53771181]
[1752809050026,0.71,180.61,180.58,19.38199135]
[1752809050238,0.71,180.61,180.59,3.76898606]
[1752809050423,0.71,180.61,180.6,5.53709856]
[1752809051036,0.71,180.61,180.6,63.73709856]
[1752809052626,0.71,180.63,180.6,75.813627]
[1752809052828,0.71,180.63,180.61,3.76977384]
[1752809053239,6.51180356,180.64,180.61,3.76977384]
[1752809053538,6.51180356,180.66,180.61,68.4815774]
[1752809053720,0.71,180.66,180.62,10.28262428]
[1752809053916,0.71,180.66,180.63,3.77082072]
[1752809054117,0.71,180.66,180.63,10.28262428]
[1752809054432,6.51180356,180.69,180.64,3.77085883]
[1752809054618,7.22180356,180.66,180.64,3.77085883]
[1752809054817,0.71,180.65,180.63,5.53617892]
[1752809055040,6.51180356,180.66,180.63,5.53617892]
[1752809055337,0.71,180.64,180.63,5.53617892]
[1752809055835,7.22180356,180.64,180.62,58.2]
[1752809056038,7.22180356,180.63,180.61,5.53673743]
[1752809056227,7.22180356,180.62,180.61,5.53673743]
[1752809056428,0.71,180.62,180.61,5.53673743]
[1752809056630,0.71,180.62,180.61,9.31865132]
[1752809057045,7.22180356,180.62,180.61,3.78191389]
[1752809057243,7.22180356,180.62,180.58,5.53771181]
[1752809057544,5.5356443,180.65,180.59,3.78236437]
[1752809057545,7.22180356,180.61,180.59,3.78236437]
[1752809057726,0.71,180.6,180.59,3.78236437]
[1752809058548,7.22180356,180.6,180.59,3.78236437]
[1752809058746,0.14216157,180.59,180.58,5.53771181]
[1752809058923,0.71,180.64,180.59,16.78468397]
[1752809059131,6.51180356,180.64,180.6,3.78248546]
[1752809059439,6.51180356,180.64,180.59,16.78468397]
[1752809059440,0.85216157,180.63,180.61,3.78248546]
[1752809059744,0.14216157,180.61,180.59,16.78468397]
[1752809059922,0.14216157,180.61,180.6,3.78141822]
[1752809060123,0.85216157,180.61,180.6,3.78141822]
[1752809060318,0.85216157,180.61,180.6,9.31851678]
[1752809060647,0.85216157,180.61,180.6,67.51851678]
[1752809061140,0.85216157,180.61,180.6,9.31851678]
[1752809061448,0.85216157,180.61,180.59,5.53732344]
[1752809061449,7.36396513,180.61,180.59,5.53732344]
[1752809061645,0.7,180.6,180.59,5.53732344]
[1752809062329,0.7,180.6,180.58,58.2]
[1752809062330,7.35396513,180.6,180.58,58.2]
[1752809062535,7.35396513,180.59,180.57,5.53795612]
[1752809062841,26.0,180.66,180.57,5.53795612]
[1752809062842,7.35396513,180.58,180.57,5.53795612]
[1752809064542,0.14216157,180.57,180.56,0.03]
[1752809064726,7.35396513,180.57,180.56,0.03]
[1752809066147,0.84216157,180.57,180.56,0.03]
[1752809066652,7.35396513,180.57,180.56,0.03]
[1752809067029,0.84216157,180.57,180.56,0.03]
[1752809067226,0.14216157,180.59,180.56,0.03]
[1752809067432,0.14216157,180.57,180.56,0.03]
[1752809068535,0.84216157,180.57,180.56,0.03]
[1752809068735,0.14216157,180.57,180.56,0.03]
[1752809068950,7.21180356,180.61,180.56,0.03]
[1752809069158,7.21180356,180.61,180.57,3.77737714]
[1752809069454,0.14216157,180.59,180.56,0.03]
[1752809069638,0.14216157,180.57,180.56,0.03]
[1752809069832,7.35396513,180.57,180.56,3.80762217]
[1752809070034,7.35396513,180.57,180.56,0.03]
[1752809070742,0.14216157,180.57,180.56,0.03]
[1752809071753,0.14216157,180.57,180.56,58.23]
[1752809072230,0.14216157,180.59,180.56,62.00537748]
[1752809072430,0.14216157,180.57,180.56,58.23]
[1752809072643,0.14216157,180.57,180.56,62.00447335]
[1752809072830,0.14216157,180.57,180.56,67.54279856]
[1752809073255,0.84216157,180.57,180.56,67.54279856]
[1752809073441,0.84216157,180.57,180.56,63.76832521]
[1752809074755,0.14216157,180.57,180.56,63.76832521]
[1752809075544,0.14216157,180.58,180.56,80.55300918]
[1752809075736,0.14216157,180.58,180.57,3.77467393]
[1752809076139,0.14216157,180.58,180.56,80.55300918]
[1752809076340,0.14216157,180.58,180.57,3.77578631]
[1752809077330,0.14216157,180.58,180.57,9.3138048]
[1752809077732,0.14216157,180.58,180.57,67.5138048]
[1752809079952,6.65396513,180.59,180.57,61.97578631]
[1752809080258,7.35396513,180.58,180.57,58.2]
[1752809080558,0.14216157,180.57,180.56,0.03]
[1752809080737,0.14216157,180.57,180.56,5.56832521]
[1752809080738,7.35396513,180.57,180.56,5.56832521]
[1752809081437,0.84216157,180.57,180.56,5.56832521]
[1752809081646,7.35396513,180.57,180.56,0.03]
[1752809082645,7.35396513,180.57,180.54,0.03]
[1752809082839,6.65396513,180.55,180.54,0.03]
[1752809083361,7.35396513,180.55,180.54,0.03]
[1752809084558,12.89259708,180.55,180.54,0.03]
[1752809085140,7.35396513,180.55,180.54,0.03]
[1752809086261,33.35396513,180.55,180.54,0.03]
[1752809087337,7.35396513,180.55,180.54,0.03]
[1752809088141,12.89259708,180.55,180.54,0.03]
[1752809088965,7.35396513,180.55,180.54,0.03]
[1752809089676,12.89259708,180.55,180.54,0.03]
[1752809089860,7.35396513,180.55,180.54,0.03]
[1752809091068,0.84216157,180.55,180.54,0.03]
[1752809091375,7.35396513,180.55,180.54,0.03]
[1752809093862,36.25396513,180.55,180.54,0.03]
[1752809094967,7.35396513,180.55,180.54,0.03]
[1752809095283,12.89259708,180.55,180.54,0.03]
[1752809096352,7.35396513,180.55,180.54,0.03]
[1752809099298,12.89259708,180.55,180.54,0.03]
[1752809100565,7.35396513,180.55,180.54,0.03]
[1752809102479,0.7,180.57,180.54,0.03]
[1752809102670,6.51180356,180.55,180.54,0.03]
[1752809102852,6.51180356,180.56,180.54,0.03]
[1752809103054,6.51180356,180.55,180.54,0.03]
[1752809103258,7.35396513,180.55,180.54,0.03]
[1752809104808,0.14216157,180.55,180.54,0.03]
[1752809104968,0.7,180.58,180.54,58.56]
[1752809104969,6.51180356,180.58,180.54,58.56]
[1752809105172,0.14216157,180.57,180.54,58.56]
[1752809105493,0.14216157,180.57,180.54,58.23]
[1752809106581,0.14216157,180.57,180.55,5.53863195]
[1752809107182,0.14216157,180.57,180.54,63.76885559]
[1752809107183,7.35396513,180.57,180.54,63.76885559]
[1752809107390,6.65396513,180.58,180.54,63.76885559]
[1752809107592,7.35396513,180.58,180.55,3.8008487]
[1752809107759,7.35396513,180.58,180.54,63.76885559]
[1752809110374,7.35396513,180.57,180.56,58.2]
[1752809112695,36.21396513,180.57,180.56,58.2]
[1752809113205,36.21396513,180.57,180.56,61.99937822]
[1752809113566,41.75198362,180.57,180.56,61.99937822]
[1752809113773,41.75198362,180.57,180.54,0.03]
[1752809113774,0.14216157,180.56,180.54,0.03]
[1752809114100,7.35396513,180.55,180.54,0.03]
[1752809114273,7.35396513,180.55,180.54,3.82993207]
[1752809114478,12.89259708,180.55,180.54,3.82993207]
[1752809114676,12.89259708,180.55,180.54,3.83108787]
[1752809114874,12.89259708,180.55,180.54,3.83178892]
[1752809115173,12.89259708,180.55,180.54,0.03]
[1752809115174,38.89259708,180.55,180.54,0.03]
[1752809117094,0.14216157,180.54,180.52,0.2]
[1752809117272,35.51396513,180.53,180.52,0.2]
[1752809117466,36.21396513,180.53,180.52,0.2]
[1752809117681,0.84216157,180.53,180.52,0.2]
[1752809117993,36.21396513,180.53,180.52,4.01929752]
[1752809118497,41.75321068,180.53,180.52,3.29929752]
[1752809118668,41.75321068,180.53,180.5,0.03]
[1752809118669,0.14216157,180.52,180.5,0.03]
[1752809118866,6.65396513,180.51,180.5,0.03]
[1752809121497,0.14216157,180.51,180.5,0.72]
[1752809122591,0.14216157,180.51,180.5,6.2601662]
[1752809122896,35.37180356,180.54,180.5,6.2601662]
[1752809123075,6.51180356,180.54,180.5,5.5701662]
[1752809123276,0.14216157,180.53,180.51,0.69]
[1752809123480,0.14216157,180.53,180.52,0.69]
[1752809124375,0.14216157,180.53,180.5,5.5701662]
[1752809124577,6.65396513,180.53,180.51,0.69]
[1752809124997,6.65396513,180.52,180.5,5.5701662]
[1752809125588,0.14216157,180.52,180.5,6.2601662]
[1752809125793,0.14216157,180.51,180.5,5.5701662]
[1752809125992,0.14216157,180.54,180.51,16.78468397]
[1752809126191,0.14216157,180.54,180.52,6.2228]
[1752809126397,0.14216157,180.54,180.52,8.5608]
[1752809126704,0.06,180.56,180.54,16.78468397]
[1752809126891,0.06,180.56,180.55,0.69]
[1752809128183,0.06,180.56,180.55,75.67468397]
[1752809128506,6.57180356,180.6,180.56,16.78468397]
[1752809128507,0.06,180.6,180.56,16.78468397]
[1752809128683,0.06,180.6,180.33,2.89217013]
[1752809128684,6.51180356,180.57,180.33,2.89217013]
[1752809129005,17.26,180.59,180.2,0.69]
[1752809129006,16.92684554,180.3,180.2,0.69]
[1752809129183,26.14216157,180.28,180.21,29.66]
[1752809129384,0.14216157,180.21,180.2,29.66]
[1752809129584,0.14216157,180.27,180.2,30.35]
[1752809129808,6.51180356,180.22,180.21,0.69]
[1752809130006,0.14216157,180.22,180.21,0.69]
[1752809130331,0.14216157,180.21,180.16,0.69]
[1752809130517,26.0,180.27,180.15,6.51180356]
[1752809130685,0.14216157,180.23,180.17,5.55031359]
[1752809130884,0.14216157,180.23,180.18,17.47468397]
[1752809131387,0.14216157,180.2,180.19,30.41]
[1752809131597,26.0,180.26,180.19,30.41]
[1752809131801,0.14216157,180.23,180.2,17.47468397]
[1752809131978,0.14216157,180.23,180.21,0.69]
[1752809132180,0.14216157,180.23,180.22,16.78468397]
[1752809132384,0.14216157,180.23,180.22,0.69]
[1752809132691,0.14216157,180.23,180.22,17.47468397]
[1752809132893,0.14216157,180.23,180.22,47.21468397]
[1752809133293,0.14216157,180.23,180.22,17.47468397]
[1752809133593,0.14216157,180.23,180.22,47.21468397]
[1752809134404,0.14216157,180.26,180.22,52.76339674]
[1752809134581,0.14216157,180.26,180.22,52.07339674]
[1752809134788,0.14216157,180.26,180.23,6.23836425]
[1752809135003,0.14216157,180.26,180.24,16.78468397]
[1752809135190,0.14216157,180.26,180.24,17.47468397]
[1752809135405,0.14216157,180.26,180.24,0.69]
[1752809135721,0.14216157,180.26,180.25,29.7]
[1752809136504,0.14216157,180.27,180.25,35.24782271]
[1752809136796,4.2231798,180.26,180.25,35.93782271]
[1752809137715,0.14216157,180.25,180.23,6.23818471]
[1752809137918,4.2231798,180.25,180.24,29.68]
[1752809138214,0.14216157,180.25,180.24,29.68]
[1752809138393,4.2231798,180.25,180.24,30.37]
[1752809138695,0.14216157,180.25,180.24,30.37]
[1752809138903,0.14216157,180.25,180.24,35.91815801]
[1752809139102,4.2231798,180.25,180.24,35.91815801]
[1752809139927,14.70581994,180.25,180.2,0.69]
[1752809140096,0.14216157,180.23,180.2,0.69]
[1752809140298,0.14216157,180.23,180.21,6.23907934]
[1752809140516,0.14216157,180.23,180.22,35.89877372]
[1752809140702,4.21249664,180.23,180.22,35.20877372]
[1752809140897,4.21249664,180.23,180.22,5.54877372]
[1752809141213,4.21249664,180.23,180.22,35.20877372]
[1752809141696,4.21249664,180.23,180.22,35.89877372]
[1752809141892,0.14216157,180.26,180.22,63.16609783]
[1752809142139,4.2094026,180.25,180.23,17.47468397]
[1752809142322,0.14216157,180.25,180.24,0.69]
[1752809142636,0.14216157,180.25,180.24,6.23815801]
[1752809143502,0.14216157,180.25,180.24,35.87815801]
[1752809144325,10.62480171,180.28,180.24,49.72855303]
[1752809144708,10.62480171,180.28,180.25,30.29]
[1752809144907,10.62480171,180.28,180.25,0.69]
[1752809145357,10.62480171,180.28,180.26,29.6]
[1752809146014,0.14216157,180.28,180.26,30.29]
[1752809146215,0.14216157,180.28,180.27,5.5472347]
[1752809146416,0.14216157,180.28,180.27,35.1472347]
[1752809146624,0.14216157,180.28,180.27,35.8372347]
[1752809146996,30.14216157,180.28,180.27,35.1272347]
[1752809147634,30.14216157,180.28,180.27,35.8172347]
[1752809148131,30.14216157,180.28,180.27,35.1272347]
[1752809148433,30.14216157,180.28,180.27,5.5472347]
[1752809148626,30.14216157,180.28,180.27,35.1272347]
[1752809149002,30.14216157,180.28,180.27,35.1072347]
[1752809150804,30.14216157,180.28,180.27,35.7972347]
[1752809151401,30.14216157,180.28,180.27,35.0872347]
[1752809151718,40.62480171,180.28,180.25,5.54757374]
[1752809151922,10.62480171,180.26,180.23,5.54846584]
[1752809152097,10.62480171,180.25,180.24,29.52]
[1752809152730,0.14216157,180.25,180.24,35.06815801]
[1752809154033,10.62480171,180.25,180.24,35.06815801]
[1752809154629,40.62480171,180.25,180.24,35.06815801]
[1752809155313,40.62480171,180.25,180.23,5.54846173]
[1752809155501,10.62480171,180.24,180.22,0.03]
[1752809155701,40.62480171,180.23,180.22,0.03]
[1752809155906,40.62480171,180.23,180.22,29.51]
[1752809156333,10.62480171,180.23,180.22,29.51]
[1752809156502,10.62480171,180.23,180.22,35.05877372]
[1752809157500,10.62480171,180.23,180.22,29.51]
[1752809157699,10.62480171,180.23,180.22,35.05877372]
[1752809158707,10.62480171,180.23,180.22,29.51]
[1752809159812,36.62480171,180.23,180.22,0.03]
[1752809160037,26.0,180.2,180.18,0.03]
[1752809160382,10.62480171,180.19,180.18,0.03]
[1752809161410,40.62480171,180.19,180.18,0.03]
[1752809161809,30.14216157,180.19,180.18,0.03]
[1752809162029,44.69856235,180.19,180.18,0.03]
[1752809162222,44.69783161,180.19,180.18,0.03]
[1752809163332,0.14216157,180.15,180.12,6.28178184]
[1752809163544,0.14216157,180.15,180.12,5.58178184]
[1752809163842,0.14216157,180.18,180.12,5.58178184]
[1752809164026,0.14216157,180.18,180.13,24.05338397]
[1752809164248,0.14216157,180.18,180.14,29.42]
[1752809164571,10.62480171,180.18,180.14,30.12]
[1752809164772,10.48264014,180.21,180.16,5.55062166]
[1752809165074,0.14216157,180.2,180.17,30.12]
[1752809165269,10.48264014,180.21,180.17,29.42]
[1752809165567,10.48264014,180.21,180.18,0.7]
[1752809165768,10.48264014,180.21,180.19,0.7]
[1752809165971,10.48264014,180.21,180.2,29.42]
[1752809166278,10.62480171,180.21,180.2,29.42]
[1752809166649,8.98576791,180.23,180.2,30.12]
[1752809166853,8.98576791,180.23,180.2,34.96938956]
[1752809167570,8.98576791,180.23,180.21,0.7]
[1752809167755,8.98576791,180.23,180.22,0.7]
[1752809168067,38.98576791,180.23,180.22,0.7]
[1752809168474,8.98576791,180.23,180.22,0.7]
[1752809168656,8.98576791,180.23,180.22,30.1]
[1752809168858,8.98576791,180.23,180.22,35.64877372]
[1752809169252,8.98576791,180.23,180.22,62.91609783]
[1752809169661,0.14216157,180.27,180.23,16.78468397]
[1752809169861,0.14216157,180.27,180.24,30.1]
[1752809170160,0.06,180.28,180.24,30.1]
[1752809170367,0.20216157,180.28,180.24,29.4]
[1752809170549,0.20216157,180.28,180.25,0.7]
[1752809170734,0.20216157,180.28,180.26,30.1]
[1752809170938,0.06,180.28,180.27,5.5472347]
[1752809171135,0.06,180.28,180.27,6.2472347]
[1752809171355,0.06,180.28,180.27,23.03191867]
[1752809171548,0.06,180.28,180.27,33.51455881]
[1752809173179,0.06,180.28,180.27,23.03191867]
[1752809173480,0.20216157,180.28,180.27,34.9072347]
[1752809173775,0.20216157,180.28,180.27,52.39191867]
[1752809173776,0.06,180.28,180.27,52.39191867]
[1752809175160,0.06,180.28,180.27,34.9072347]
[1752809175558,0.20216157,180.28,180.27,34.9072347]
[1752809176074,0.20216157,180.28,180.27,5.5472347]
[1752809176453,0.20216157,180.28,180.27,29.34]
[1752809176748,10.68480171,180.28,180.24,11.85357983]
[1752809176949,10.48264014,180.27,180.25,29.34]
[1752809177260,0.14216157,180.26,180.25,34.88780654]
[1752809177675,0.14216157,180.26,180.25,34.86780654]
[1752809178689,0.14216157,180.26,180.25,29.3]
[1752809180068,0.14216157,180.26,180.25,34.84783549]
[1752809180269,0.14216157,180.26,180.25,35.54783549]
[1752809180698,0.06,180.28,180.25,35.54783549]
[1752809181002,0.14216157,180.27,180.26,29.28]
[1752809181304,0.14216157,180.27,180.26,29.3]
[1752809182273,10.62480171,180.27,180.26,29.3]
[1752809182678,0.14216157,180.27,180.26,35.54754243]
[1752809183082,0.20216157,180.28,180.26,35.54754243]
[1752809183778,6.75056247,180.28,180.26,35.54754243]
[1752809184486,6.75056247,180.28,180.26,29.3]
[1752809184678,6.75056247,180.28,180.24,5.54793271]
[1752809185001,6.75056247,180.28,180.25,29.96]
[1752809185165,6.75056247,180.28,180.25,29.26]
[1752809186079,0.14216157,180.26,180.24,0.7]
[1752809186377,0.14216157,180.26,180.25,29.24]
[1752809187008,0.14216157,180.26,180.25,29.94]
[1752809187312,0.14216157,180.26,180.25,35.4878502]
[1752809187811,0.14216157,180.26,180.25,29.94]
[1752809188299,0.14216157,180.26,180.25,35.4878502]
[1752809188803,0.06,180.28,180.25,35.4878502]
[1752809188997,0.20216157,180.28,180.26,0.7]
[1752809189212,0.20216157,180.28,180.27,29.22]
[1752809189509,0.20216157,180.28,180.27,29.92]
[1752809190576,0.06,180.28,180.27,35.4672347]
[1752809191878,6.75056247,180.28,180.27,29.2]
[1752809193000,0.20216157,180.28,180.27,34.7472347]
[1752809193888,0.06,180.28,180.27,35.4472347]
[1752809196903,6.75056247,180.28,180.27,29.14]
[1752809199104,0.20216157,180.28,180.27,29.14]
[1752809199292,0.06,180.28,180.27,29.84]
[1752809199793,0.06,180.28,180.27,35.3872347]
[1752809202382,0.06,180.28,180.27,52.17191867]
[1752809202584,0.06,180.28,180.27,60.22041957]
[1752809202783,0.06,180.28,180.27,66.29661957]
[1752809204010,1e-08,180.28,180.27,70.14825493]
[1752809204201,1e-08,180.28,180.27,85.74825493]
[1752809204706,1e-08,180.28,180.27,111.74825493]
[1752809205684,1e-08,180.28,180.27,107.89661957]
[1752809205898,1e-08,180.28,180.27,111.74342526]
[1752809207412,1e-08,180.28,180.27,105.11502436]
[1752809207607,1e-08,180.28,180.27,111.64342526]
[1752809208721,1e-08,180.28,180.27,76.05502436]
[1752809208927,1e-08,180.28,180.27,111.64342526]
[1752809209206,1e-08,180.28,180.27,89.49502436]
[1752809209422,1e-08,180.28,180.27,111.62342526]
[1752809210110,1e-08,180.28,180.27,85.62342526]
[1752809211402,1e-08,180.28,180.27,85.64758155]
[1752809212715,1e-08,180.28,180.27,56.62758155]
[1752809212899,1e-08,180.28,180.27,85.62758155]
[1752809213109,1e-08,180.28,180.27,70.02758155]
[1752809215722,1e-08,180.34,180.33,42.78468397]
[1752809215897,0.06,180.36,180.34,16.78468397]
[1752809216096,0.06,180.36,180.35,49.71564595]
[1752809216607,0.06,180.36,180.35,56.93404685]
[1752809217295,0.06,180.36,180.35,62.4788209]
[1752809217720,0.06,180.36,180.35,55.26042]
[1752809218408,0.06,180.36,180.35,38.45573603]
[1752809220102,0.06,180.36,180.35,38.44188107]
[1752809220409,0.06,180.36,180.35,38.44198645]
[1752809220717,0.06,180.36,180.35,45.66038735]
[1752809221321,0.06,180.36,180.35,39.11198645]
[1752809221902,6.75056247,180.36,180.31,16.78468397]
[1752809222091,0.14216157,180.33,180.32,3.85760198]
[1752809222295,6.69056247,180.33,180.32,29.0]
[1752809223926,0.14216157,180.33,180.32,29.0]
[1752809224096,0.14216157,180.34,180.32,34.54569653]
[1752809224293,6.69056247,180.34,180.32,34.54569653]
[1752809224539,0.06,180.36,180.33,0.67]
[1752809224699,0.06,180.36,180.34,29.65]
[1752809225133,0.06,180.36,180.35,21.31298628]
[1752809225416,0.06,180.36,180.35,27.86138718]
[1752809226023,0.1,180.45,180.36,16.78468397]
[1752809226198,0.1,180.45,180.4,6.5484009]
[1752809226199,6.6484009,180.45,180.4,6.5484009]
[1752809226397,6.6484009,180.45,180.41,39.40670321]
[1752809226398,0.1,180.45,180.41,39.40670321]
[1752809226620,0.24216157,180.45,180.42,5.54262276]
[1752809226802,0.06,180.44,180.43,35.5284009]
[1752809227007,0.06,180.44,180.43,56.83208725]
[1752809227608,0.06,180.44,180.43,56.82830349]
[1752809228615,0.06,180.44,180.43,62.37061906]
[1752809228918,0.06,180.44,180.43,66.2753891]
[1752809229301,0.06,180.44,180.43,37.2953891]
[1752809229528,0.06,180.44,180.43,62.43017048]
[1752809229736,0.06,180.44,180.43,66.26976583]
[1752809230799,0.1,180.45,180.44,16.78468397]
[1752809231001,0.1,180.45,180.44,31.07745026]
[1752809231222,0.1,180.45,180.44,31.74745026]
[1752809232045,0.1,180.45,180.44,37.28945868]
[1752809232718,0.1,180.47,180.44,37.28945868]
[1752809232912,0.1,180.47,180.46,10.45317094]
[1752809233131,0.1,180.47,180.46,27.23785491]
[1752809233338,0.1,180.47,180.46,27.90785491]
[1752809233928,0.1,180.47,180.46,31.7349519]
[1752809234122,0.1,180.47,180.46,26.82317517]
[1752809234327,0.1,180.47,180.46,37.27634611]
[1752809235440,1e-08,180.47,180.46,43.63034611]
[1752809235650,1e-08,180.47,180.46,33.17717517]
[1752809235957,1e-08,180.47,180.46,43.63034611]
[1752809236120,1e-08,180.47,180.46,72.61034611]
[1752809236325,1e-08,180.47,180.46,72.60400769]
[1752809239255,1e-08,180.47,180.46,72.60715594]
[1752809239665,1e-08,180.47,180.46,72.60510828]
[1752809239844,1e-08,180.47,180.46,83.20044079]
[1752809240047,0.06,180.55,180.5,42.78468397]
[1752809240246,0.06,180.55,180.54,16.78468397]
[1752809240450,0.06,180.55,180.54,45.74468397]
[1752809240655,0.06,180.55,180.54,46.41468397]
[1752809240847,10.27317094,180.58,180.54,45.74468397]
[1752809241050,26.12,180.6,180.54,46.41468397]
[1752809241257,36.57317094,180.6,180.56,16.78468397]
[1752809241545,36.57317094,180.6,180.57,28.96]
[1752809243341,36.57317094,180.6,180.57,34.49793701]
[1752809243969,36.57317094,180.6,180.57,28.96]
[1752809244252,10.45317094,180.59,180.57,28.96]
[1752809244937,10.45317094,180.59,180.57,34.49801216]
[1752809245143,10.45317094,180.59,180.57,5.53801216]
[1752809245457,10.57317094,180.6,180.58,28.96]
[1752809246065,10.51317094,180.6,180.58,34.4976949]
[1752809246266,0.20216157,180.6,180.58,34.4976949]
[1752809246449,10.65533251,180.6,180.58,28.96]
[1752809247465,10.71533251,180.6,180.58,28.96]
[1752809248075,10.45317094,180.59,180.58,28.96]
[1752809248281,0.14216157,180.58,180.5,15.39076674]
[1752809248449,10.45317094,180.55,180.51,45.74468397]
[1752809248857,10.45317094,180.55,180.51,46.40468397]
[1752809249050,6.52852904,180.55,180.53,16.78468397]
[1752809249267,0.06,180.57,180.54,28.96]
[1752809249473,6.52852904,180.57,180.54,34.49874604]
[1752809249670,6.52852904,180.57,180.55,28.96]
[1752809250665,6.52852904,180.56,180.55,28.96]
[1752809251860,0.14216157,180.55,180.49,0.66]
[1752809252062,6.52852904,180.5,180.48,16.78468397]
[1752809252260,6.52852904,180.5,180.49,28.96]
[1752809252657,0.14216157,180.52,180.49,28.96]
[1752809252844,26.06,180.53,180.49,28.96]
[1752809252845,6.52852904,180.5,180.49,28.96]
[1752809253448,6.52852904,180.5,180.49,34.50047315]
[1752809253649,6.52852904,180.51,180.49,34.50047315]
[1752809253879,26.0,180.53,180.49,28.96]
[1752809254074,6.52852904,180.5,180.49,28.96]
[1752809256454,6.52852904,180.5,180.48,22.32538592]
[1752809256654,6.52852904,180.5,180.49,28.96]
[1752809257159,0.14216157,180.52,180.48,22.32538592]
[1752809257464,6.52852904,180.5,180.49,28.96]
[1752809258682,6.52852904,180.51,180.49,35.16039068]
[1752809258888,6.52852904,180.5,180.49,29.62]
[1752809259861,6.52852904,180.51,180.49,35.16046847]
[1752809260087,0.14216157,180.52,180.5,0.66]
[1752809260385,0.14216157,180.52,180.51,28.96]
[1752809260888,6.67069061,180.52,180.51,28.96]
[1752809261674,6.52852904,180.53,180.51,35.15985928]
[1752809261880,6.67069061,180.53,180.52,28.96]
[1752809262396,0.14216157,180.53,180.52,28.96]
[1752809262580,6.67069061,180.53,180.52,28.96]
[1752809263094,0.14216157,180.53,180.52,35.1595524]
[1752809263478,6.67069061,180.53,180.52,35.1595524]
[1752809264192,6.67069061,180.53,180.52,35.1395524]
[1752809265092,0.20216157,180.57,180.52,35.1395524]
[1752809265390,6.67069061,180.53,180.52,35.1395524]
[1752809265891,0.14216157,180.53,180.52,35.1395524]
[1752809266088,6.67069061,180.53,180.52,35.1395524]
[1752809267390,0.14216157,180.52,180.48,17.44468397]
[1752809267594,6.52852904,180.5,180.49,28.94]
[1752809268002,6.52852904,180.5,180.48,22.98544097]
[1752809268299,6.52852904,180.49,180.48,22.32544097]
[1752809268474,6.52852904,180.49,180.48,51.26544097]
[1752809269084,0.14216157,180.52,180.48,51.26544097]
[1752809269291,6.52852904,180.49,180.48,51.26544097]
[1752809269798,6.52852904,180.49,180.48,5.540757]
[1752809269978,6.52852904,180.49,180.48,34.480757]
[1752809271485,0.06,180.52,180.48,34.480757]
[1752809272004,6.52852904,180.49,180.48,34.480757]
[1752809272189,6.52852904,180.49,180.48,38.31738164]
[1752809273090,6.52852904,180.49,180.48,32.77662464]
[1752809273584,12.27116376,180.49,180.44,0.03]
[1752809273897,6.67069061,180.45,180.44,0.03]
[1752809274102,6.67069061,180.45,180.44,28.97]
[1752809274609,6.67069061,180.45,180.44,0.03]
[1752809274780,6.67069061,180.45,180.44,28.97]
[1752809276403,6.67069061,180.45,180.44,0.03]
[1752809276605,6.67069061,180.45,180.44,28.97]
[1752809278805,26.0,180.43,180.42,0.03]
[1752809279112,32.67069061,180.43,180.42,0.03]
[1752809279303,32.73069061,180.43,180.42,0.03]
[1752809280609,38.27300618,180.43,180.42,0.03]
[1752809280783,0.14216157,180.42,180.38,0.03]
[1752809280988,6.67069061,180.39,180.38,28.97]
[1752809283088,6.67069061,180.39,180.34,5.57486701]
[1752809283291,0.14216157,180.34,180.33,0.2]
[1752809283491,6.73069061,180.34,180.33,0.2]
[1752809284917,12.27577212,180.34,180.33,0.2]
[1752809285722,6.67069061,180.34,180.33,0.2]
[1752809286812,2.89572183,180.21,180.13,0.2]
[1752809287112,2.89572183,180.21,180.16,0.72]
[1752809287113,0.14216157,180.2,180.16,0.72]
[1752809287315,6.52852904,180.19,180.17,0.72]
[1752809287615,2.89572183,180.21,180.18,45.72468397]
[1752809287985,2.89572183,180.21,180.19,0.72]
[1752809288190,9.42425087,180.21,180.2,0.72]
[1752809288408,9.42425087,180.21,180.18,28.94]
[1752809288614,6.52852904,180.19,180.18,28.94]